fUSD/lending_fUSD_20250113
["ID","MTS","AMOUNT","RATE_DAILY","PERIOD"]
[348710486,1736740234264,-514.41047388,9.997e-05,2]
[348710487,1736740234278,-512.33729334,9.997e-05,2]
[348710488,1736740234288,-500.0,9.997e-05,2]
[348710489,1736740234298,-648.57327136,9.997e-05,2]
[348710490,1736740234309,-6296.922,9.997e-05,2]
[348710491,1736740234319,-286.038,9.997e-05,2]
[348710492,1736740234327,-506.3600295,9.997e-05,2]
[348710493,1736740234337,-500.0,9.997e-05,2]
[348710494,1736740234347,-504.21364831,9.997e-05,2]
[348710495,1736740234357,-352.94631588,9.997e-05,2]
[348710496,1736740234366,-500.0,9.997e-05,2]
[348710497,1736740234376,-503.4129691,9.997e-05,2]
[348710498,1736740234386,-503.71911374,9.997e-05,2]
[348710499,1736740234397,-205.11098321,9.997e-05,2]
[348710500,1736740234407,-505.59814191,9.997e-05,2]
[348710501,1736740234417,-500.0,9.997e-05,2]
[348710502,1736740234427,-500.0,9.997e-05,2]
[348710503,1736740234436,-501.47076427,9.997e-05,2]
[348710504,1736740234446,-500.0,9.997e-05,2]
[348710505,1736740234456,-500.8778483,9.997e-05,2]
[348710506,1736740234466,-500.0,9.997e-05,2]
[348710507,1736740234477,-500.0,9.997e-05,2]
[348710508,1736740234488,-500.83469896,9.997e-05,2]
[348710509,1736740234498,-500.0,9.997e-05,2]
[348710510,1736740234508,-500.0,9.997e-05,2]
[348710511,1736740234519,-517.02373344,9.997e-05,2]
[348710512,1736740234530,-500.0,9.997e-05,2]
[348710513,1736740234540,-259.49394404,9.997e-05,2]
[348710514,1736740234550,-500.0,9.997e-05,2]
[348710515,1736740234559,-500.0,9.997e-05,2]
[348710516,1736740234569,-500.0,9.997e-05,2]
[348710517,1736740234579,-500.0,9.997e-05,2]
[348710518,1736740234588,-317.27115475,9.997e-05,2]
[348710519,1736740234598,-500.0,9.997e-05,2]
[348710520,1736740234608,-500.0,9.997e-05,2]
[348710521,1736740234617,-546.34,9.997e-05,2]
[348710522,1736740234627,-500.0,9.997e-05,2]
[348710523,1736740234636,-283.20120066,9.997e-05,2]
[348710524,1736740234645,-520.38,9.997e-05,2]
[348710525,1736740234655,-503.63487128,9.997e-05,2]
[348710526,1736740234665,-512.56775837,9.997e-05,2]
[348710527,1736740234675,-500.0,9.997e-05,2]
[348710528,1736740234686,-506.1205007,9.997e-05,2]
[348710529,1736740234696,-500.0,9.997e-05,2]
[348710530,1736740234706,-504.76259074,9.997e-05,2]
[348710531,1736740234715,-508.93916176,9.997e-05,2]
[348710532,1736740234726,-506.49663508,9.997e-05,2]
[348710533,1736740234736,-500.0,9.997e-05,2]
[348710534,1736740234745,-500.0,9.997e-05,2]
[348710535,1736740234755,-505.12690024,9.997e-05,2]
[348710536,1736740234764,-506.85811184,9.997e-05,2]
[348710537,1736740234776,-500.0,9.997e-05,2]
[348710538,1736740234785,-500.0,9.997e-05,2]
[348710539,1736740234794,-259.10827542,9.997e-05,2]
[348710540,1736740234804,-500.0,9.997e-05,2]
[348710541,1736740234813,-500.0,9.997e-05,2]
[348710542,1736740234823,-500.0,9.997e-05,2]
[348710543,1736740234833,-471.36581377,9.997e-05,2]
[348710544,1736740234842,-501.69151402,9.997e-05,2]
[348710545,1736740234852,-500.0,9.997e-05,2]
[348710546,1736740234861,-500.0,9.997e-05,2]
[348710547,1736740234870,-505.36261335,9.997e-05,2]
[348710548,1736740234880,-177.43975407,9.997e-05,2]
[348710549,1736740234890,-517.25880039,9.997e-05,2]
[348710550,1736740234899,-500.0,9.997e-05,2]
[348710551,1736740234909,-500.0,9.997e-05,2]
[348710552,1736740234919,-500.0,9.997e-05,2]
[348710553,1736740234928,-500.0,9.997e-05,2]
[348710554,1736740234939,-510.00452105,9.997e-05,2]
[348710555,1736740234949,-500.0,9.997e-05,2]
[348710556,1736740234959,-505.70029784,9.997e-05,2]
[348710557,1736740234968,-506.23629391,9.997e-05,2]
[348710558,1736740234978,-440.0,9.997e-05,2]
[348710559,1736740234987,-503.91007265,9.997e-05,2]
[348710560,1736740234996,-513.43496707,9.997e-05,2]
[348710561,1736740235006,-509.1113502,9.997e-05,2]
[348710562,1736740235016,-500.0,9.997e-05,2]
[348710563,1736740235027,-500.0,9.997e-05,2]
[348710564,1736740235036,-559.13,9.997e-05,2]
[348710565,1736740235045,-504.39709296,9.997e-05,2]
[348710566,1736740235055,-505.6272375,9.997e-05,2]
[348710567,1736740235064,-504.68152205,9.997e-05,2]
[348710568,1736740235074,-500.0,9.997e-05,2]
[348710569,1736740235083,-500.0,9.997e-05,2]
[348710570,1736740235092,-500.0,9.997e-05,2]
[348710571,1736740235102,-500.0,9.997e-05,2]
[348710572,1736740235111,-500.0,9.997e-05,2]
[348710573,1736740235120,-500.0,9.997e-05,2]
[348710574,1736740235130,-500.0,9.997e-05,2]
[348710575,1736740235139,-500.0,9.997e-05,2]
[348710576,1736740235148,-500.0,9.997e-05,2]
[348710577,1736740235157,-500.0,9.997e-05,2]
[348710578,1736740235167,-500.0,9.997e-05,2]
[348710579,1736740235176,-500.0,9.997e-05,2]
[348710580,1736740235186,-500.0,9.997e-05,2]
[348710581,1736740235195,-464.42611021,9.997e-05,2]
[348710582,1736740235205,-526.14,9.997e-05,2]
[348710583,1736740235214,-500.0,9.997e-05,2]
[348710584,1736740235223,-500.0,9.997e-05,2]
[348710585,1736740235233,-500.0,9.997e-05,2]
[348710586,1736740235243,-500.0,9.997e-05,2]
[348710587,1736740235252,-539.06,9.997e-05,2]
[348710588,1736740235262,-500.0,9.997e-05,2]
[348710589,1736740235272,-4709.7964151,9.997e-05,2]
[348710590,1736740235281,-500.0,9.997e-05,2]
[348710591,1736740235291,-500.0,9.997e-05,2]
[348710592,1736740235301,-500.0,9.997e-05,2]
[348710593,1736740235311,-182.7913661,9.997e-05,2]
[348710594,1736740235320,-500.0,9.997e-05,2]
[348710595,1736740235330,-503.44924425,9.997e-05,2]
[348710596,1736740235339,-500.0,9.997e-05,2]
[348710597,1736740235348,-530.65227451,9.997e-05,2]
[348710598,1736740235358,-504.29583791,9.997e-05,2]
[348710599,1736740235367,-513.46220202,9.997e-05,2]
[348710600,1736740235377,-509.43576043,9.997e-05,2]
[348710601,1736740235387,-500.0,9.997e-05,2]
[348710602,1736740235397,-554.21,9.997e-05,2]
[348710603,1736740235406,-503.07231393,9.997e-05,2]
[348710604,1736740235416,-507.94100867,9.997e-05,2]
[348710605,1736740235425,-500.0,9.997e-05,2]
[348710606,1736740235434,-500.0,9.997e-05,2]
[348710607,1736740235444,-500.0,9.997e-05,2]
[348710608,1736740235453,-500.0,9.997e-05,2]
[348710609,1736740235463,-500.0,9.997e-05,2]
[348710610,1736740235473,-500.0,9.997e-05,2]
[348710611,1736740235483,-500.0,9.997e-05,2]
[348710612,1736740235493,-506.77769631,9.997e-05,2]
[348710613,1736740235503,-500.0,9.997e-05,2]
[348710614,1736740235519,-507.4631291,9.997e-05,2]
[348710615,1736740235528,-500.0,9.997e-05,2]
[348710616,1736740235538,-153.44742952,9.997e-05,2]
[348710617,1736740235548,-350.59227642,9.998e-05,2]
[348710618,1736740235557,-2031.96,9.998e-05,2]
[348710619,1736740235567,-2339.65,9.998e-05,2]
[348710620,1736740235577,-500.0,9.998e-05,2]
[348710621,1736740235587,-1291.81,9.998e-05,2]
[348710622,1736740235597,-1396.86,9.998e-05,2]
[348710623,1736740235607,-500.0,9.998e-05,2]
[348710624,1736740235616,-503.90661548,9.998e-05,2]
[348710625,1736740235627,-509.87140563,9.998e-05,2]
[348710626,1736740235637,-518.82822656,9.998e-05,2]
[348710627,1736740235646,-505.95955998,9.998e-05,2]
[348710628,1736740235656,-505.20970618,9.998e-05,2]
[348710629,1736740235665,-507.19160769,9.998e-05,2]
[348710630,1736740235674,-514.83234658,9.998e-05,2]
[348710631,1736740235684,-500.0,9.998e-05,2]
[348710632,1736740235696,-506.27604051,9.998e-05,2]
[348710633,1736740235705,-509.35178671,9.998e-05,2]
[348710634,1736740235715,-504.32229228,9.998e-05,2]
[348710635,1736740235725,-500.0,9.998e-05,2]
[348710636,1736740235735,-1095.86,9.998e-05,2]
[348710637,1736740235744,-500.0,9.998e-05,2]
[348710638,1736740235754,-645.73,9.998e-05,2]
[348710639,1736740235766,-667.63,9.998e-05,2]
[348710640,1736740235777,-500.0,9.998e-05,2]
[348710641,1736740235786,-703.01,9.998e-05,2]
[348710642,1736740235796,-500.0,9.998e-05,2]
[348710643,1736740235805,-507.89700712,9.998e-05,2]
[348710644,1736740235815,-921.21,9.998e-05,2]
[348710645,1736740235824,-921.21,9.998e-05,2]
[348710646,1736740235833,-500.0,9.998e-05,2]
[348710647,1736740235843,-1679.7,9.998e-05,2]
[348710648,1736740235852,-503.12763968,9.998e-05,2]
[348710649,1736740235861,-502.92625052,9.998e-05,2]
[348710650,1736740235870,-501.36652186,9.998e-05,2]
[348710651,1736740235879,-500.0,9.998e-05,2]
[348710652,1736740235889,-501.02073617,9.998e-05,2]
[348710653,1736740235898,-500.94760866,9.998e-05,2]
[348710654,1736740235908,-1092.15,9.998e-05,2]
[348710655,1736740235917,-500.80251176,9.998e-05,2]
[348710656,1736740235926,-282.36324924,9.998e-05,2]
[348710657,1736740235935,-500.0,9.998e-05,2]
[348710658,1736740235945,-615.14,9.998e-05,2]
[348710659,1736740235954,-501.84191754,9.998e-05,2]
[348710660,1736740235963,-501.06657801,9.998e-05,2]
[348710661,1736740235972,-1147.24,9.998e-05,2]
[348710662,1736740235981,-500.0,9.998e-05,2]
[348710663,1736740235991,-1752.58,9.998e-05,2]
[348710664,1736740236000,-501.32754201,9.998e-05,2]
[348710665,1736740236010,-501.38991878,9.998e-05,2]
[348710666,1736740236019,-504.17208657,9.998e-05,2]
[348710667,1736740236029,-500.0,9.998e-05,2]
[348710668,1736740236038,-500.0,9.998e-05,2]
[348710669,1736740236047,-500.0,9.998e-05,2]
[348710670,1736740236057,-592.15,9.998e-05,2]
[348710671,1736740236067,-502.5396085,9.998e-05,2]
[348710672,1736740236076,-503.86641234,9.998e-05,2]
[348710673,1736740236085,-500.0,9.998e-05,2]
[348710674,1736740236095,-502.41951997,9.998e-05,2]
[348710675,1736740236104,-868.52,9.998e-05,2]
[348710676,1736740236114,-1119.99,9.998e-05,2]
[348710677,1736740236124,-500.0,9.998e-05,2]
[348710678,1736740236133,-500.0,9.998e-05,2]
[348710679,1736740236143,-500.0,9.998e-05,2]
[348710680,1736740236153,-510.11875699,9.998e-05,2]
[348710681,1736740236162,-500.0,9.998e-05,2]
[348710682,1736740236171,-567.09,9.998e-05,2]
[348710683,1736740236180,-500.0,9.998e-05,2]
[348710684,1736740236190,-500.0,9.998e-05,2]
[348710685,1736740236199,-153.44742952,9.999e-05,2]
[348710686,1736740236209,-1117.38238758,9.999e-05,3]
[348710687,1736740236220,-775.15,9.999e-05,2]
[348710688,1736740236230,-623.38,9.999e-05,2]
[348710689,1736740236240,-500.0,9.999e-05,2]
[348710690,1736740236250,-856.66,9.999e-05,2]
[348710691,1736740236260,-500.0,9.999e-05,2]
[348710692,1736740236270,-500.0,9.999e-05,2]
[348710693,1736740236279,-861.76,9.999e-05,2]
[348710694,1736740236288,-500.56870927,9.999e-05,2]
[348710695,1736740236298,-500.0,9.999e-05,2]
[348710696,1736740236308,-1550.19,9.999e-05,2]
[348710697,1736740236317,-500.0,9.999e-05,2]
[348710698,1736740236327,-500.0,9.999e-05,2]
[348710699,1736740236336,-203.15822531,9.999e-05,2]
[348710700,1736740236346,-590.98,9.999e-05,2]
[348710701,1736740236355,-500.0,9.999e-05,2]
[348710702,1736740236364,-500.0,9.999e-05,2]
[348710703,1736740236373,-717.18,9.999e-05,2]
[348710704,1736740236382,-501.84008998,9.999e-05,2]
[348710705,1736740236392,-500.0,9.999e-05,2]
[348710706,1736740236402,-500.0,9.999e-05,2]
[348710707,1736740236411,-500.0,9.999e-05,2]
[348710708,1736740236420,-503.17522245,9.999e-05,2]
[348710709,1736740236430,-500.0,9.999e-05,2]
[348710710,1736740236440,-500.64160824,9.999e-05,2]
[348710711,1736740236449,-500.0,9.999e-05,2]
[348710712,1736740236459,-504.96141679,9.999e-05,2]
[348710713,1736740236468,-500.0,9.999e-05,2]
[348710714,1736740236479,-500.0,9.999e-05,2]
[348710715,1736740236488,-500.0,9.999e-05,2]
[348710716,1736740236497,-500.0,9.999e-05,2]
[348710717,1736740236507,-500.0,9.999e-05,2]
[348710718,1736740236517,-500.0,9.999e-05,2]
[348710719,1736740236527,-500.0,9.999e-05,2]
[348710720,1736740236535,-500.0,9.999e-05,2]
[348710721,1736740236544,-150.734938,9.999e-05,2]
[348710722,1736740236554,-500.0,9.999e-05,2]
[348710723,1736740236563,-500.0,9.999e-05,2]
[348710724,1736740236573,-500.0,9.999e-05,2]
[348710725,1736740236583,-500.0,9.999e-05,2]
[348710726,1736740236592,-500.0,9.999e-05,2]
[348710727,1736740236601,-500.0,9.999e-05,2]
[348710728,1736740236610,-500.0,9.999e-05,2]
[348710729,1736740236619,-156.208281,9.999e-05,2]
[348710730,1736740236629,-500.0,9.999e-05,2]
[348710731,1736740236638,-500.0,9.999e-05,2]
[348710732,1736740236647,-500.0,9.999e-05,2]
[348710733,1736740236657,-523.25,9.999e-05,2]
[348710734,1736740236666,-1984.86,9.999e-05,2]
[348710735,1736740236675,-158.091979,9.999e-05,2]
[348710736,1736740236685,-500.0,9.999e-05,2]
[348710737,1736740236697,-157.891221,9.999e-05,2]
[348710738,1736740236707,-500.0,9.999e-05,2]
[348710739,1736740236716,-500.0,9.999e-05,2]
[348710740,1736740236725,-500.0,9.999e-05,2]
[348710741,1736740236736,-499.41488575,9.999e-05,2]
[348710742,1736740236746,-500.0,9.999e-05,2]
[348710743,1736740236755,-500.0,9.999e-05,2]
[348710744,1736740236765,-500.0,9.999e-05,2]
[348710745,1736740236775,-500.0,9.999e-05,2]
[348710746,1736740236784,-500.0,9.999e-05,2]
[348710747,1736740236794,-500.0,9.999e-05,2]
[348710748,1736740236803,-500.0,9.999e-05,2]
[348710749,1736740236812,-500.0,9.999e-05,2]
[348710750,1736740236821,-509.46,9.999e-05,2]
[348710751,1736740236831,-504.26155719,9.999e-05,2]
[348710752,1736740236840,-500.0,9.999e-05,2]
[348710753,1736740236850,-500.0,9.999e-05,2]
[348710754,1736740236859,-500.0,9.999e-05,2]
[348710755,1736740236869,-500.0,9.999e-05,2]
[348710756,1736740236879,-500.0,9.999e-05,2]
[348710757,1736740236888,-500.0,9.999e-05,2]
[348710758,1736740236898,-500.0,9.999e-05,2]
[348710759,1736740236907,-500.0,9.999e-05,2]
[348710760,1736740236916,-500.0,9.999e-05,2]
[348710761,1736740236926,-500.0,9.999e-05,2]
[348710762,1736740236940,-500.0,9.999e-05,2]
[348710763,1736740236954,-517.11,9.999e-05,2]
[348710764,1736740236963,-210.93619016,9.999e-05,2]
[348710765,1736740236983,-289.06380984,9.999e-05,2]
[348710766,1736740236992,-500.0,9.999e-05,2]
[348710767,1736740237002,-154.37869016,9.999e-05,2]
[348710768,1736740238656,-760.39087322,9.899e-05,2]
[348710769,1736740238667,-4239.60912678,9.899e-05,2]
[348710770,1736740238677,-2233.49,9.998e-05,2]
[348710771,1736740238687,-349.23497014,9.999e-05,2]
[348710772,1736740238700,-500.0,9.999e-05,2]
[348710773,1736740238709,-500.16894742,9.999e-05,2]
[348710774,1736740238718,-500.0,9.999e-05,2]
[348710775,1736740238727,-500.0,9.999e-05,2]
[348710776,1736740238737,-500.46377657,9.999e-05,2]
[348710777,1736740238747,-500.49645006,9.999e-05,2]
[348710778,1736740238756,-500.0,9.999e-05,2]
[348710779,1736740238765,-500.0,9.999e-05,2]
[348710780,1736740238779,-499.26885143,9.999e-05,2]
[348710781,1736740238788,-500.0,9.999e-05,2]
[348710782,1736740238798,-500.82,9.999e-05,2]
[348710783,1736740238807,-500.0,9.999e-05,2]
[348710784,1736740238816,-500.0,9.999e-05,2]
[348710785,1736740238826,-500.0,9.999e-05,2]
[348710786,1736740238835,-1933.37,9.999e-05,2]
[348710787,1736740238844,-361.27642602,9.999e-05,2]
[348710788,1736740238856,-138.72357398,9.999e-05,2]
[348710789,1736740238866,-500.0,9.999e-05,2]
[348710790,1736740238875,-500.0,9.999e-05,2]
[348710791,1736740238884,-507.05730264,9.999e-05,2]
[348710792,1736740238893,-392.31912338,9.999e-05,2]
[348710793,1736740238905,-107.68087662,9.999e-05,2]
[348710794,1736740238914,-500.0,9.999e-05,2]
[348710795,1736740238923,-500.0,9.999e-05,2]
[348710796,1736740238932,-379.58047687,9.999e-05,2]
[348710798,1736740238944,-120.41952313,9.999e-05,2]
[348710800,1736740238953,-412.47811193,9.999e-05,2]
[348710802,1736740238964,-87.52188807,9.999e-05,2]
[348710804,1736740238973,-500.0,9.999e-05,2]
[348710807,1736740238983,-500.0,9.999e-05,2]
[348710808,1736740238992,-513.61,9.999e-05,2]
[348710810,1736740239001,-500.0,9.999e-05,2]
[348710812,1736740239011,-500.0,9.999e-05,2]
[348710814,1736740239026,-500.0,9.999e-05,2]
[348710816,1736740239035,-500.0,9.999e-05,2]
[348710818,1736740239045,-730.95,9.999e-05,2]
[348710820,1736740239055,-500.0,9.999e-05,2]
[348710823,1736740239064,-500.0,9.999e-05,2]
[348710824,1736740239074,-500.0,9.999e-05,2]
[348710826,1736740239085,-500.0,9.999e-05,2]
[348710829,1736740239094,-500.0,9.999e-05,2]
[348710831,1736740239103,-500.0,9.999e-05,2]
[348710854,1736740239316,-500.0,9.999e-05,2]
[348710856,1736740239325,-409.79198651,9.999e-05,2]
[348710858,1736740239334,-511.69179496,9.999e-05,2]
[348710860,1736740239343,-500.0,9.999e-05,2]
[348710862,1736740239352,-500.0,9.999e-05,2]
[348710864,1736740239361,-1405.99,9.999e-05,2]
[348710865,1736740239370,-3232.76,9.999e-05,2]
[348710866,1736740239379,-500.0,9.999e-05,2]
[348710867,1736740239388,-1571.36744676,9.999e-05,2]
[348710868,1736740239400,-1442.23255324,9.999e-05,2]
[348710869,1736740239409,-500.0,9.999e-05,2]
[348710870,1736740239418,-500.0,9.999e-05,2]
[348710871,1736740239428,-500.0,9.999e-05,2]
[348710872,1736740239437,-500.0,9.999e-05,2]
[348710873,1736740239446,-500.0,9.999e-05,2]
[348710874,1736740239456,-500.0,9.999e-05,2]
[348710875,1736740239465,-500.0,9.999e-05,2]
[348710876,1736740239475,-635.16,9.999e-05,2]
[348710877,1736740239484,-500.0,9.999e-05,2]
[348710878,1736740239493,-2049.41,9.999e-05,2]
[348710879,1736740239502,-500.0,9.999e-05,2]
[348710880,1736740239512,-746.88,9.999e-05,2]
[348710881,1736740239523,-500.0,9.999e-05,2]
[348710882,1736740239533,-1098.3,9.999e-05,2]
[348710883,1736740239542,-500.0,9.999e-05,2]
[348710884,1736740239551,-500.0,9.999e-05,2]
[348710885,1736740239560,-1100.71,9.999e-05,2]
[348710886,1736740239569,-504.35793293,9.999e-05,2]
[348710887,1736740239579,-500.0,9.999e-05,2]
[348710888,1736740239588,-556.29882742,9.999e-05,2]
[348710889,1736740239597,-500.0,9.999e-05,2]
[348710890,1736740239607,-733.57,9.999e-05,2]
[348710891,1736740239615,-733.57,9.999e-05,2]
[348710892,1736740239625,-733.57,9.999e-05,2]
[348710893,1736740239635,-500.0,9.999e-05,2]
[348710894,1736740239644,-733.57,9.999e-05,2]
[348710895,1736740239653,-703.01,9.999e-05,2]
[348710896,1736740239663,-733.57,9.999e-05,2]
[348710897,1736740239672,-703.01,9.999e-05,2]
[348710898,1736740239682,-913.29,9.999e-05,2]
[348710899,1736740239695,-733.57,9.999e-05,2]
[348710900,1736740239704,-733.57,9.999e-05,2]
[348710901,1736740239714,-2003.08,9.999e-05,2]
[348710902,1736740239723,-500.0,9.999e-05,2]
[348710903,1736740239734,-1861.91,9.999e-05,2]
[348710904,1736740239743,-500.0,9.999e-05,2]
[348710905,1736740239752,-500.0,9.999e-05,2]
[348710906,1736740239762,-500.0,9.999e-05,2]
[348710907,1736740239776,-594.36,9.999e-05,2]
[348710908,1736740239785,-500.0,9.999e-05,2]
[348710909,1736740239794,-500.0,9.999e-05,2]
[348710910,1736740239803,-500.0,9.999e-05,2]
[348710911,1736740239812,-204.45617168,9.999e-05,2]
[348710912,1736740239822,-776.66,9.999e-05,2]
[348710913,1736740239831,-390.63488347,9.999e-05,2]
[348710914,1736740239840,-500.0,9.999e-05,2]
[348710915,1736740239850,-1965.04,9.999e-05,2]
[348710916,1736740239860,-500.0,9.999e-05,2]
[348710917,1736740239869,-500.0,9.999e-05,2]
[348710918,1736740239878,-530.31,9.999e-05,2]
[348710919,1736740239888,-500.0,9.999e-05,2]
[348710920,1736740239897,-500.0,9.999e-05,2]
[348710921,1736740239906,-500.0,9.999e-05,2]
[348710922,1736740239915,-500.0,9.999e-05,2]
[348710923,1736740239924,-742.34,9.999e-05,2]
[348710924,1736740239934,-1115.97,9.999e-05,2]
[348710925,1736740239943,-510.7947899,9.999e-05,2]
[348710926,1736740239952,-500.0,9.999e-05,2]
[348710927,1736740239962,-500.0,9.999e-05,2]
[348710928,1736740239971,-500.0,9.999e-05,2]
[348710929,1736740239980,-213.475994,9.999e-05,2]
[348710930,1736740239989,-500.0,9.999e-05,2]
[348710931,1736740239998,-500.0,9.999e-05,2]
[348710932,1736740240008,-784.97,9.999e-05,2]
[348710933,1736740240017,-508.20119983,9.999e-05,2]
[348710934,1736740240028,-500.0,9.999e-05,2]
[348710935,1736740240038,-500.0,9.999e-05,2]
[348710936,1736740240047,-500.0,9.999e-05,2]
[348710937,1736740240056,-500.0,9.999e-05,2]
[348710938,1736740240066,-1826.71,9.999e-05,2]
[348710939,1736740240075,-518.54,9.999e-05,2]
[348710940,1736740240084,-856.77,9.999e-05,2]
[348710941,1736740240093,-500.0,9.999e-05,2]
[348710942,1736740240103,-500.0,9.999e-05,2]
[348710943,1736740240112,-225.47330253,9.999e-05,2]
[348710944,1736740240122,-281.30593698,9.999e-05,2]
[348710945,1736740240132,-806023.636788,0.0001,2]
[348710946,1736740240142,-7015.1379887,0.0001,2]
[348710947,1736740240151,-331.65505043,0.0001,2]
[348710948,1736740240160,-7312.62577763,0.0001,2]
[348710949,1736740240169,-6940.37343003,0.0001,2]
[348710950,1736740240178,-658.2689816,0.0001,2]
[348710951,1736740240188,-15416858.99221753,0.0001,2]
[348710952,1736740240200,-497.69661662,0.0001,2]
[348710953,1736740240211,-1586.4333847,0.0001,2]
[348710954,1736740240222,-562.48,0.0001,2]
[348710955,1736740240249,-6588.72161702,0.0001,2]
[348710956,1736740240260,-1459.29044035,0.0001,2]
[348710957,1736740240273,-432.6490037,0.0001,2]
[348710958,1736740240625,-950.75,9.998e-05,2]
[348710959,1736740240634,-500.0,9.999e-05,2]
[348710960,1736740240644,-824.66069731,0.0001,2]
[348710961,1736740240955,-2771.23937551,0.0001,2]
[348710962,1736740240972,-8458.8754854,0.0001,2]
[348710963,1736740240984,-9096.64373114,0.0001,2]
[348710964,1736740240997,-8947.21879473,0.0001,2]
[348710965,1736740241009,-8943.78386462,0.0001,2]
[348710966,1736740241023,-9077.54866152,0.0001,2]
[348710967,1736740241035,-8943.84023489,0.0001,2]
[348710968,1736740241046,-1086702.19317029,0.0001,2]
[348710969,1736740241058,-624.79062538,0.0001,2]
[348710980,1736740245943,-500.0,9.995e-05,2]
[348710982,1736740245953,-291.46804647,9.998e-05,2]
[348710996,1736740246245,-1055.94195353,9.998e-05,2]
[348710998,1736740246254,-500.0,9.998e-05,2]
[348710999,1736740246264,-961.39388794,9.999e-05,2]
[348711000,1736740246277,-1074.24611206,9.999e-05,2]
[348711001,1736740246287,-500.0,9.999e-05,2]
[348711002,1736740246296,-2080.23826,0.0001,2]
[348711003,1736740246308,-280.1210306,0.0001,2]
[348711004,1736740246319,-570.916685,0.0001,2]
[348711005,1736740246330,-657.41777,0.0001,2]
[348711006,1736740246341,-360.26241,0.0001,2]
[348711007,1736740246352,-9258.08201931,0.0001,2]
[348711008,1736740246364,-1406.09166,0.0001,2]
[348711009,1736740246375,-1228.49761,0.0001,2]
[348711010,1736740246519,-1413.51905588,0.0001,2]
[348711013,1736740246534,-3785.15416186,0.0001,2]
[348711020,1736740246808,-2980.82216307,0.0001,2]
[348711021,1736740246820,-534.36519297,0.0001,2]
[348711022,1736740246831,-2852.5,0.0001,2]
[348711023,1736740246842,-409282.13646575,0.0001,2]
[348711024,1736740246854,-1906.96007882,0.0001,2]
[348711036,1736740374223,3000.0,0.0002,120]
[348711037,1736740447201,-150.0,0.00019344,2]
[348711038,1736740557801,-150.0,0.00019344,2]
[348711039,1736740730446,801.76,8.219e-05,2]
[348711040,1736740749075,50000.0,8.5e-05,2]
[348711041,1736740959342,-150.0,0.00019239,2]
[348711043,1736741282681,-150.0,0.00019239,2]
[348711044,1736741428031,-150.0,0.00019239,2]
[348711050,1736741432491,-838.46,9e-05,2]
[348711052,1736741432501,-250.0,9.123e-05,2]
[348711054,1736741432510,-243.02,9.153e-05,2]
[348711055,1736741432520,-309.07,9.158e-05,2]
[348711056,1736741432529,-297.08733463,9.191e-05,2]
[348711057,1736741432548,-319.5,9.191e-05,2]
[348711058,1736741432811,-383.41266537,9.191e-05,2]
[348711059,1736741432820,-200.0,9.203e-05,2]
[348711060,1736741432829,-292.15,9.205e-05,2]
[348711061,1736741432839,-604.74,9.295e-05,2]
[348711062,1736741432850,-23890.0,9.323e-05,2]
[348711063,1736741432859,-250.0,9.381e-05,2]
[348711064,1736741432869,-150.0,9.836e-05,2]
[348711065,1736741432878,-150.0,9.836e-05,2]
[348711066,1736741432887,-150.0,9.836e-05,2]
[348711067,1736741432896,-5814.0,9.863e-05,2]
[348711068,1736741432905,-500.0,9.883e-05,2]
[348711069,1736741432914,-2500.0,9.899e-05,2]
[348711070,1736741432924,-4521.08225906,9.9e-05,2]
[348711168,1736741440676,-413.51629892,9.9e-05,2]
[348711169,1736741440777,-65.40144202,9.9e-05,2]
[348711170,1736741440787,-207.74305798,9.972e-05,2]
[348711171,1736741440798,-427.46748785,9.972e-05,2]
[348711172,1736741440809,-150.0,9.972e-05,2]
[348711173,1736741440819,-337.87251239,9.973e-05,2]
[348711174,1736741440831,-2049.89997072,9.973e-05,2]
[348711175,1736741440842,-7390.22751689,9.973e-05,2]
[348711176,1736741440851,-502.6914198,9.973e-05,2]
[348711177,1736741440860,-410.05943165,9.998e-05,2]
[348711178,1736741440869,-511.05965463,9.998e-05,2]
[348711179,1736741440879,-556.41892136,9.998e-05,2]